bitfinex-derivatives/quotes_BNBF0:USTF0_20250907
["timestamp","ask_amount","ask_price","bid_price","bid_amount"]
[1757242181001,0.19949553,872.21,870.07,0.7260659]
[1757242181201,0.19949553,872.21,870.08,0.7260659]
[1757242181406,0.19949553,872.21,870.09,0.7260659]
[1757242181606,0.19949553,872.21,870.1,0.7260659]
[1757242181806,0.19949553,872.21,870.11,0.7260659]
[1757242182004,0.19949553,872.21,870.12,0.7260659]
[1757242182304,0.19949553,872.21,870.13,0.7260659]
[1757242182503,0.19949553,872.21,870.14,0.7260659]
[1757242182706,0.19949553,872.21,870.15,0.7260659]
[1757242182905,0.19949553,872.21,869.91,0.19958305]
[1757242182906,0.19949553,872.21,870.16,0.7260659]
[1757242183202,0.19949553,872.21,870.17,0.7260659]
[1757242183407,0.19949553,872.21,870.18,0.7260659]
[1757242183708,0.19949553,872.21,870.19,0.7260659]
[1757242183908,0.19949553,872.21,870.2,0.7260659]
[1757242184206,0.19949553,872.21,870.21,0.7260659]
[1757242184408,0.19949553,872.21,870.22,0.7260659]
[1757242184606,0.19949553,872.21,870.23,0.7260659]
[1757242184804,0.19949553,872.21,870.24,0.7260659]
[1757242185009,0.19949553,872.21,869.91,0.19958305]
[1757242185309,0.19949553,872.21,869.92,0.75650157]
[1757242185509,2.5741481,872.18,869.93,0.75650157]
[1757242185705,2.5741481,872.18,869.94,0.75650157]
[1757242185909,2.5741481,872.18,869.95,0.75650157]
[1757242186204,2.5741481,872.17,869.96,0.75650157]
[1757242186409,2.5741481,872.17,869.97,0.75650157]
[1757242186608,2.5741481,872.16,869.98,0.75650157]
[1757242186809,2.5741481,872.16,869.99,0.75650157]
[1757242187009,2.5741481,872.16,870.0,0.75650157]
[1757242187210,2.5741481,872.14,870.01,0.75650157]
[1757242187407,2.5741481,872.14,870.02,0.75650157]
[1757242187711,2.5741481,871.94,870.03,0.75650157]
[1757242187911,2.5741481,871.94,870.04,0.75650157]
[1757242188113,2.5741481,871.9,870.05,0.75650157]
[1757242188322,2.5741481,871.9,870.06,0.75650157]
[1757242188616,2.5741481,871.91,870.07,0.75650157]
[1757242188818,2.5741481,871.91,870.08,0.75650157]
[1757242189016,2.5741481,871.91,870.09,0.75650157]
[1757242189221,2.5741481,871.91,869.91,0.19958305]
[1757242189415,2.5741481,871.91,869.92,0.75642939]
[1757242189715,2.5741481,871.92,869.93,0.75642939]
[1757242190018,2.5741481,871.92,869.91,0.19958305]
[1757242190019,2.5741481,871.92,869.94,0.75642939]
[1757242190213,2.5741481,871.92,869.95,0.75642939]
[1757242190415,2.5741481,871.92,869.96,0.75642939]
[1757242190715,2.5741481,871.91,869.97,0.75642939]
[1757242190916,2.5741481,871.91,869.98,0.75642939]
[1757242191116,2.5741481,871.91,869.99,0.75642939]
[1757242191316,2.5741481,871.92,870.0,0.75642939]
[1757242191522,2.5741481,871.92,870.01,0.75642939]
[1757242191817,2.5741481,871.92,870.02,0.75642939]
[1757242192122,2.5741481,871.92,870.03,0.75642939]
[1757242192317,2.5741481,871.92,870.04,0.75642939]
[1757242192518,2.5741481,871.92,870.05,0.75642939]
[1757242192718,2.5741481,871.92,870.06,0.75642939]
[1757242192921,2.5741481,871.9,870.07,0.75642939]
[1757242193119,2.5741481,871.9,869.91,0.19958305]
[1757242193323,2.5741481,871.91,869.92,0.75622476]
[1757242193519,2.5741481,871.91,869.93,0.75622476]
[1757242193718,2.5741481,871.91,869.94,0.75622476]
[1757242193924,2.5741481,871.64,869.95,0.75622476]
[1757242194117,2.5741481,871.64,869.96,0.75622476]
[1757242194318,2.5741481,871.65,869.97,0.75622476]
[1757242194522,2.5741481,871.65,869.98,0.75622476]
[1757242194823,2.5741481,871.55,869.99,0.75622476]
[1757242195021,2.5741481,871.55,870.0,0.75622476]
[1757242195321,2.5741481,871.55,870.01,0.75622476]
[1757242195522,2.5741481,871.55,870.02,0.75622476]
[1757242195722,2.5741481,871.55,870.03,0.75622476]
[1757242195924,2.5741481,871.55,869.91,0.19958305]
[1757242196124,2.5741481,871.55,869.92,0.7561243]
[1757242196327,2.5741481,871.55,869.93,0.7561243]
[1757242196625,2.5741481,871.55,869.94,0.7561243]
[1757242196925,2.5741481,871.46,869.95,0.7561243]
[1757242197126,2.5741481,871.46,869.96,0.7561243]
[1757242197323,2.5741481,871.46,869.97,0.7561243]
[1757242197522,2.5741481,871.55,869.98,0.7561243]
[1757242197825,2.5741481,871.55,869.99,0.7561243]
[1757242198026,2.5741481,871.56,869.91,0.19958305]
[1757242198224,2.5741481,871.56,869.92,0.75606566]
[1757242198422,2.5741481,871.56,869.93,0.75606566]
[1757242198624,2.5741481,871.53,869.94,0.75606566]
[1757242198824,2.5741481,871.53,869.95,0.75606566]
[1757242199026,2.5741481,871.53,869.96,0.75606566]
[1757242199221,2.5741481,871.53,869.97,0.75599868]
[1757242199425,2.5741481,871.53,869.98,0.75599868]
[1757242199623,2.5741481,871.54,869.91,0.19958305]
[1757242199829,2.5741481,871.54,869.92,0.7559916]
[1757242200125,2.5741481,871.54,869.93,0.7559916]
[1757242200325,2.5741481,871.54,869.94,0.7559916]
[1757242200527,2.5741481,871.54,869.95,0.7559916]
[1757242200726,2.5741481,871.54,869.96,0.7559916]
[1757242200925,2.5741481,871.54,869.97,0.7559916]
[1757242201126,2.5741481,871.54,869.98,0.7559916]
[1757242201327,2.5741481,871.54,869.91,0.19958305]
[1757242201527,2.5741481,871.54,869.92,0.7559314]
[1757242201825,2.5741481,871.54,869.93,0.7559314]
[1757242202027,2.5741481,871.54,869.94,0.7559314]
[1757242202230,2.5741481,871.54,870.07,0.199539]
[1757242202825,2.5741481,871.41,870.07,0.199539]
[1757242203229,2.5741481,871.42,870.07,0.199539]
[1757242205427,2.5741481,871.43,870.07,0.199539]
[1757242206428,2.5741481,871.44,870.07,0.199539]
[1757242207533,2.5741481,871.3,870.08,0.75558715]
[1757242207730,2.5741481,871.3,870.09,0.75558715]
[1757242208034,2.5741481,871.55,870.1,0.75558715]
[1757242208235,2.5741481,871.55,870.11,0.75558715]
[1757242208433,2.5741481,871.56,870.12,0.75558715]
[1757242208631,2.5741481,871.56,870.13,0.75558715]
[1757242208834,2.5741481,871.56,870.07,0.199539]
[1757242209036,2.5741481,871.53,870.08,0.7551704]
[1757242209234,2.5741481,871.53,870.09,0.7551704]
[1757242209533,2.5741481,871.6,870.1,0.7551704]
[1757242209737,2.5741481,871.6,870.11,0.7551704]
[1757242209940,2.5741481,871.6,870.12,0.7551704]
[1757242210239,2.5741481,871.6,870.13,0.7551704]
[1757242210436,2.5741481,871.6,870.14,0.75507458]
[1757242210640,2.5741481,871.75,870.07,0.199539]
[1757242210838,2.5741481,871.75,870.08,0.75507455]
[1757242211037,2.5741481,871.75,870.09,0.75507455]
[1757242211237,2.5741481,871.75,870.1,0.75507455]
[1757242211436,2.5741481,871.75,870.11,0.75507455]
[1757242211639,2.5741481,871.75,870.12,0.75507455]
[1757242211838,2.5741481,871.75,870.13,0.75507455]
[1757242212136,2.5741481,871.75,870.07,0.199539]
[1757242212335,2.5741481,871.75,870.08,0.75500316]
[1757242212538,2.5741481,871.75,870.09,0.75500316]
[1757242212739,2.5741481,871.7,870.1,0.75500316]
[1757242213039,2.5741481,871.7,870.11,0.75500316]
[1757242213236,2.5741481,871.7,870.12,0.75500316]
[1757242213440,2.5741481,871.7,870.13,0.75500316]
[1757242213641,2.5741481,871.7,870.07,0.199539]
[1757242213940,2.5741481,871.7,870.08,0.75494675]
[1757242214237,2.5741481,871.7,870.09,0.75494675]
[1757242214441,2.5741481,871.7,870.1,0.75494675]
[1757242214640,2.5741481,871.7,870.11,0.75494675]
[1757242214839,2.5741481,871.69,870.12,0.75494675]
[1757242215038,2.5741481,871.69,870.13,0.75494675]
[1757242215242,2.5741481,871.69,870.07,0.199539]
[1757242215538,2.5741481,871.69,870.08,0.75490839]
[1757242215742,2.5741481,871.7,870.09,0.75490839]
[1757242216043,2.5741481,871.7,870.1,0.75490839]
[1757242216243,2.5741481,871.71,870.11,0.75490839]
[1757242216443,2.5741481,871.71,870.12,0.75490839]
[1757242216743,2.5741481,871.71,870.13,0.75490839]
[1757242216945,2.5741481,871.71,870.14,0.75490839]
[1757242217241,2.5741481,871.71,870.07,0.199539]
[1757242217445,2.5741481,871.7,870.08,0.75678666]
[1757242217645,2.5741481,871.7,870.07,0.199539]
[1757242217845,2.5741481,871.45,870.07,0.199539]
[1757242218545,2.5741481,871.46,870.07,0.199539]
[1757242218945,2.5741481,871.45,870.07,0.199539]
[1757242219540,2.5741481,871.43,870.07,0.199539]
[1757242220145,2.5741481,871.54,870.07,0.199539]
[1757242220645,2.5741481,871.52,870.07,0.199539]
[1757242223745,2.5741481,871.51,870.07,0.199539]
[1757242224145,2.5741481,871.52,870.07,0.199539]
[1757242226344,2.5741481,871.51,870.07,0.199539]
[1757242227945,2.5741481,871.56,870.07,0.199539]
[1757242228342,3.611876,871.93,870.07,0.199539]
[1757242228343,2.5741481,871.55,870.07,0.199539]
[1757242229342,2.5741481,871.54,869.57,0.77004729]
[1757242229546,2.5741481,871.54,869.58,1.52695702]
[1757242229744,2.5741481,871.54,869.59,0.75690973]
[1757242229944,2.5741481,871.46,869.6,0.75690973]
[1757242230142,2.5741481,871.46,869.6,1.52695702]
[1757242230347,2.5741481,871.46,869.61,0.75690973]
[1757242230546,2.5741481,871.4,869.61,0.75690973]
[1757242231048,2.5741481,871.37,869.61,0.75690973]
[1757242231248,2.5741481,871.37,869.61,1.52695702]
[1757242231445,2.5741481,871.35,869.62,0.75690973]
[1757242232450,2.5741481,871.33,869.62,0.75690973]
[1757242233151,2.5741481,871.33,869.62,1.52695702]
[1757242233347,2.5741481,871.33,869.63,0.75690973]
[1757242233648,2.5741481,871.33,869.63,1.52695702]
[1757242233850,2.5741481,871.33,869.64,0.75690973]
[1757242234051,2.5741481,871.5,869.65,0.75690973]
[1757242234248,2.5741481,871.5,869.66,0.75690973]
[1757242234448,2.5741481,871.5,870.08,0.19957104]
[1757242234652,2.5741481,871.49,870.08,0.19957104]
[1757242235748,2.5741481,871.52,870.08,0.19957104]
[1757242236352,2.5741481,871.51,870.08,0.19957104]
[1757242237649,2.5741481,871.55,870.08,0.19957104]
[1757242238354,2.5741481,871.54,870.08,0.19957104]
[1757242239354,2.5741481,871.53,870.08,0.19957104]
[1757242240356,2.5741481,871.52,870.08,0.19957104]
[1757242242356,2.5741481,871.51,870.08,0.19957104]
[1757242243456,2.5741481,871.52,870.08,0.19957104]
[1757242244053,2.5741481,871.31,870.08,0.19957104]
[1757242244254,3.611876,871.64,870.08,0.19957104]
[1757242244754,3.611876,871.7,870.08,0.19957104]
[1757242245859,3.611876,871.56,870.08,0.19957104]
[1757242246957,3.611876,871.53,870.08,0.19957104]
[1757242247659,3.611876,871.53,870.09,0.75175486]
[1757242247860,0.19957104,871.85,870.1,0.75175486]
[1757242248156,0.19957104,871.85,870.08,0.19957104]
[1757242248360,0.19957104,871.85,870.09,0.75188969]
[1757242248554,0.19957104,871.85,870.1,0.75188969]
[1757242248755,0.19957104,871.85,870.08,0.19957104]
[1757242249060,0.19957104,871.85,870.09,0.75188969]
[1757242249262,0.19957104,871.85,870.1,0.75188969]
[1757242249556,0.19957104,871.85,870.11,0.75188969]
[1757242249758,0.19957104,871.85,870.08,0.19957104]
[1757242249957,0.19957104,871.85,870.09,0.75193455]
[1757242250160,0.19957104,871.85,870.1,0.75193455]
[1757242250357,0.19957104,871.85,870.08,0.19957104]
[1757242250658,0.19957104,871.85,870.09,0.75200527]
[1757242250862,0.19957104,871.85,870.1,0.75200527]
[1757242251057,0.19957104,871.85,870.11,0.75200527]
[1757242251256,0.19957104,871.85,870.12,0.75200527]
[1757242251458,0.19957104,871.85,870.13,0.75200527]
[1757242251662,0.19957104,871.85,870.14,0.75200527]
[1757242251860,0.19957104,871.85,870.15,0.75200527]
[1757242252163,0.19957104,871.85,870.16,0.75200527]
[1757242252364,0.19957104,871.85,870.17,0.75200527]
[1757242252561,0.19957104,871.85,870.18,0.75200527]
[1757242252764,0.19957104,871.85,870.19,0.75200527]
[1757242253061,0.19957104,871.85,870.08,0.19957104]
[1757242253264,0.19957104,871.85,870.09,0.75217064]
[1757242253461,0.19957104,871.85,870.1,0.75217064]
[1757242253764,0.19957104,871.85,870.11,0.75217064]
[1757242253961,0.19957104,871.85,870.12,0.75217064]
[1757242254160,0.19957104,871.85,870.13,0.75217064]
[1757242254364,0.19957104,871.85,870.14,0.75217064]
[1757242254664,0.19957104,871.85,870.15,0.75217064]
[1757242254867,0.19957104,871.85,870.16,0.75217064]
[1757242255063,0.19957104,871.85,870.17,0.75217064]
[1757242255266,0.19957104,871.85,870.18,0.75217064]
[1757242255563,0.19957104,871.85,870.19,0.75217064]
[1757242255761,0.19957104,871.85,870.2,0.75217064]
[1757242255962,0.19957104,871.85,870.21,0.75217064]
[1757242256167,0.19957104,871.85,870.08,0.19957104]
[1757242256363,0.19957104,871.85,870.09,0.75242552]
[1757242256562,0.19957104,871.85,870.08,0.19957104]
[1757242256563,0.19957104,871.85,870.1,0.75242552]
[1757242256767,0.19957104,871.85,870.11,0.75242552]
[1757242256963,0.19957104,871.85,870.12,0.75242552]
[1757242257266,0.19957104,871.85,870.13,0.75242552]
[1757242257467,0.19957104,871.85,870.14,0.75242552]
[1757242257668,0.19957104,871.85,870.08,0.19957104]
[1757242260569,2.5746509,871.67,870.08,0.19957104]
[1757242261071,2.5746509,871.62,870.08,0.19957104]
[1757242261574,2.5746509,871.7,870.08,0.19957104]
[1757242264275,2.5746509,871.67,870.08,0.19957104]
[1757242265282,2.5746509,871.64,870.08,0.19957104]
[1757242267881,2.5746509,871.68,870.08,0.19957104]
[1757242269983,2.5746509,871.67,870.08,0.19957104]
[1757242271186,2.5746509,871.64,870.08,0.19957104]
[1757242271588,2.5746509,871.48,870.08,0.19957104]
[1757242273686,2.5746509,871.47,870.08,0.19957104]
[1757242275183,2.5746509,871.92,870.08,0.19957104]
[1757242275787,2.5746509,871.62,870.08,0.19957104]
[1757242276388,2.5746509,871.88,870.08,0.19957104]
[1757242276784,2.5746509,871.9,870.08,0.19957104]
[1757242277987,2.5746509,871.87,870.08,0.19957104]
[1757242278585,2.5746509,871.86,870.08,0.19957104]
[1757242279490,2.5746509,871.84,870.08,0.19957104]
[1757242283088,2.5746509,871.85,870.08,0.19957104]
[1757242285186,2.5746509,871.72,870.08,0.19957104]
[1757242286286,2.5746509,871.26,870.08,0.19957104]
[1757242286490,0.19955902,872.0,870.08,0.19957104]
[1757242286691,3.611876,871.68,870.08,0.19957104]
[1757242287688,3.611876,871.67,870.08,0.19957104]
[1757242288890,3.611876,871.68,870.08,0.19957104]
[1757242289792,3.611876,871.67,870.08,0.19957104]
[1757242290892,3.611876,871.69,870.08,0.19957104]
[1757242291894,3.611876,871.68,870.08,0.19957104]
[1757242292892,3.611876,871.67,870.08,0.19957104]
[1757242294998,3.611876,871.8,870.08,0.19957104]
[1757242295394,2.576366,871.41,870.08,0.19957104]
[1757242297001,2.576366,871.4,870.08,0.19957104]
[1757242297503,2.576366,871.33,870.09,0.75596677]
[1757242297698,2.576366,871.33,870.1,0.75596677]
[1757242297897,2.576366,871.33,870.11,0.75596677]
[1757242298099,2.576366,871.53,870.12,0.75596677]
[1757242298401,2.576366,871.53,870.13,0.75596677]
[1757242298597,2.576366,871.53,870.14,0.75596677]
[1757242298798,2.576366,871.53,870.15,0.75596677]
[1757242298999,2.576366,871.53,870.16,0.75596677]
[1757242299198,2.576366,871.53,870.17,0.75596677]
[1757242299403,2.576366,871.53,870.18,0.75595674]
[1757242299599,2.576366,871.64,870.19,0.75595674]
[1757242299803,2.576366,871.64,870.08,0.19957104]
[1757242299804,2.576366,871.64,870.2,0.75595674]
[1757242300003,2.576366,871.64,870.08,0.19957104]
[1757242300200,2.576366,871.79,870.09,0.75595674]
[1757242300506,2.576366,871.79,870.1,0.75595674]
[1757242300703,2.576366,871.79,870.11,0.75595674]
[1757242300899,2.576366,871.79,870.12,0.75595674]
[1757242301100,2.576366,871.79,870.13,0.75595674]
[1757242301301,2.576366,871.79,870.14,0.75595674]
[1757242301602,2.576366,871.79,870.15,0.75595674]
[1757242301802,2.576366,871.79,870.16,0.75595674]
[1757242302000,2.576366,871.79,870.17,0.75566977]
[1757242302199,2.576366,871.79,870.18,0.75566977]
[1757242302503,0.19955902,872.0,870.19,0.75566977]
[1757242302700,0.19955902,872.0,870.2,0.75566977]
[1757242302904,0.19955902,872.0,870.21,0.75566977]
[1757242303204,0.19955902,872.0,870.22,0.75566977]
[1757242303403,0.19955902,872.0,870.08,0.19957104]
[1757242303601,0.19955902,872.0,870.09,0.75551037]
[1757242303901,0.19955902,872.0,870.1,0.75551037]
[1757242304201,0.19955902,872.0,870.11,0.75551081]
[1757242304401,0.19955902,872.0,870.12,0.75551081]
[1757242304601,0.19955902,872.0,870.13,0.75551081]
[1757242304804,0.19955902,872.0,870.08,0.19957104]
[1757242304805,0.19955902,872.0,870.14,0.75551081]
[1757242305004,0.19955902,872.0,870.15,0.75551081]
[1757242305205,0.19955902,872.0,870.16,0.75551081]
[1757242305502,0.19955902,872.0,870.17,0.75551081]
[1757242305807,0.19955902,872.0,870.18,0.75551081]
[1757242306002,0.19955902,872.0,870.19,0.75551081]
[1757242306306,0.19955902,872.0,870.2,0.75551081]
[1757242306503,0.19955902,872.0,870.21,0.75551081]
[1757242306703,0.19955902,872.0,870.22,0.75551081]
[1757242307001,0.19955902,872.0,870.23,0.75551081]
[1757242307204,0.19955902,872.0,870.24,0.75551081]
[1757242307404,0.19955902,872.0,870.25,0.75551081]
[1757242307607,2.576366,871.87,870.08,0.19957104]
[1757242308002,2.576366,871.86,870.08,0.19957104]
[1757242309006,2.576366,871.87,870.08,0.19957104]
[1757242309708,2.576366,871.74,870.08,0.19957104]
[1757242310106,2.576366,871.7,870.08,0.19957104]
[1757242312310,2.576366,871.4,870.08,0.19957104]
[1757242313210,2.576366,871.32,870.08,0.19957104]
[1757242313716,2.576366,871.27,870.08,0.19957104]
[1757242314317,2.576366,871.33,870.08,0.19957104]
[1757242315918,2.576366,871.32,870.08,0.19957104]
[1757242317415,2.576366,871.38,870.08,0.19957104]
[1757242317914,2.576366,871.41,870.08,0.19957104]
[1757242318620,2.576366,871.4,870.08,0.19957104]
[1757242319020,2.576366,871.63,870.08,0.19957104]
[1757242320525,2.576366,871.71,870.08,0.19957104]
[1757242324332,2.576366,871.66,870.08,0.19957104]
[1757242324829,2.576366,871.9,870.08,0.19957104]
[1757242325926,2.576366,871.93,870.08,0.19957104]
[1757242327333,2.576366,871.92,870.08,0.19957104]
[1757242327931,2.576366,871.93,870.08,0.19957104]
[1757242328834,2.576366,871.86,870.08,0.19957104]
[1757242329334,2.576366,871.85,870.08,0.19957104]
[1757242330636,2.576366,871.81,870.08,0.19957104]
[1757242334638,2.576366,871.51,870.08,0.19957104]
[1757242335836,2.576366,871.38,870.08,0.19957104]
[1757242336334,2.576366,871.44,870.08,0.19957104]
[1757242336737,2.576366,871.43,870.08,0.19957104]
[1757242337340,2.576366,871.42,870.08,0.19957104]
[1757242337541,2.576366,871.42,870.09,0.73575698]
[1757242337737,2.576366,871.42,870.1,0.73575698]
[1757242337937,2.576366,871.59,870.11,0.73575698]
[1757242338240,2.576366,871.59,870.08,0.19957104]
[1757242338241,2.576366,871.59,870.12,0.73575698]
[1757242338437,2.576366,871.6,870.13,0.73575698]
[1757242338741,2.576366,871.6,870.14,0.73575698]
[1757242338940,2.576366,871.6,870.15,0.73575698]
[1757242339139,2.576366,871.6,870.16,0.73575698]
[1757242339343,2.576366,871.6,870.17,0.73575698]
[1757242339538,2.576366,871.6,870.18,0.73575698]
[1757242339741,2.576366,871.6,870.19,0.73575698]
[1757242340036,2.576366,871.6,870.08,0.19957104]
[1757242340240,2.576366,871.6,870.09,0.73577326]
[1757242340441,2.576366,871.6,870.1,0.73577326]
[1757242340741,2.576366,871.6,870.11,0.73577326]
[1757242341042,2.576366,871.49,870.12,0.73577326]
[1757242341337,2.576366,871.49,870.13,0.73577326]
[1757242341541,2.576366,871.49,870.14,0.73577326]
[1757242341739,2.576366,871.49,870.15,0.73577326]
[1757242341941,2.576366,871.49,870.16,0.73577326]
[1757242342139,2.576366,871.46,870.17,0.73577326]
[1757242342443,2.576366,871.46,870.18,0.73577326]
[1757242342738,2.576366,871.46,870.08,0.19957104]
[1757242342939,2.576366,871.46,870.09,0.73580809]
[1757242343242,2.576366,871.47,870.1,0.73580809]
[1757242343541,2.576366,871.47,870.08,0.19957104]
[1757242343542,2.576366,871.48,870.11,0.73580809]
[1757242343741,2.576366,871.48,870.12,0.73580809]
[1757242343940,2.576366,871.48,870.13,0.73580809]
[1757242344241,2.576366,871.48,870.08,0.19957104]
[1757242344242,2.576366,871.52,870.14,0.73580809]
[1757242344439,2.576366,871.52,870.15,0.73580809]
[1757242344639,2.576366,871.52,870.16,0.73580809]
[1757242344843,2.576366,871.52,870.17,0.73580809]
[1757242345044,2.576366,871.52,870.18,0.73580809]
[1757242345243,2.576366,871.52,870.19,0.73584185]
[1757242345442,2.576366,871.52,870.08,0.19957104]
[1757242345639,2.576366,871.52,870.09,0.73584572]
[1757242345840,2.576366,871.75,870.1,0.73584572]
[1757242346045,2.576366,871.75,870.11,0.73584572]
[1757242346245,2.576366,871.75,870.12,0.73584572]
[1757242346543,2.576366,871.75,870.13,0.73584572]
[1757242346742,2.576366,871.73,870.14,0.73584572]
[1757242347042,2.576366,871.73,870.15,0.73584572]
[1757242347341,2.576366,871.73,870.16,0.73584572]
[1757242347542,2.576366,871.73,870.08,0.19957104]
[1757242347746,2.576366,871.56,870.08,0.19957104]
[1757242348347,2.576366,871.54,870.08,0.19957104]
[1757242350348,2.576366,871.55,870.08,0.19957104]
[1757242351347,2.576366,871.54,870.08,0.19957104]
[1757242351943,2.576366,871.55,870.08,0.19957104]
[1757242353651,2.576366,871.54,870.08,0.19957104]
[1757242353947,2.576366,871.52,870.08,0.19957104]
[1757242354547,3.611876,871.95,870.09,0.73596044]
[1757242354753,2.576366,871.96,870.1,0.73596044]
[1757242354952,2.576366,871.96,870.11,0.73596044]
[1757242355152,2.576366,871.98,870.12,0.73596044]
[1757242355350,2.576366,871.98,870.13,0.73596044]
[1757242355651,0.19950697,872.17,870.14,0.73596044]
[1757242355652,2.576366,871.99,870.14,0.73596044]
[1757242355849,2.576366,871.99,870.15,0.73596044]
[1757242356053,2.576366,871.99,870.16,0.73596044]
[1757242356254,2.576366,871.99,870.08,0.19957104]
[1757242356452,2.576366,871.99,870.09,0.73560954]
[1757242356653,2.576366,871.99,870.1,0.73560954]
[1757242356952,2.576366,871.99,870.08,0.19957104]
[1757242356953,2.576366,871.99,870.11,0.73560954]
[1757242357256,2.576366,872.0,870.12,0.73560954]
[1757242357452,2.576366,872.0,870.13,0.73560954]
[1757242357656,2.576366,871.98,870.14,0.73560954]
[1757242357951,2.576366,871.98,870.08,0.19957104]
[1757242358156,2.576366,871.98,870.09,0.73555352]
[1757242358452,2.576366,871.98,870.1,0.73555352]
[1757242358756,2.576366,871.99,870.11,0.73555352]
[1757242358953,2.576366,871.99,870.12,0.73555352]
[1757242359157,2.576366,871.99,870.13,0.73555352]
[1757242359353,2.576366,871.99,870.14,0.73555352]
[1757242359558,2.576366,871.99,870.08,0.19957104]
[1757242359856,2.576366,871.99,870.09,0.73548572]
[1757242360053,2.576366,871.99,870.1,0.73548572]
[1757242360257,2.576366,871.99,870.11,0.73548572]
[1757242360455,2.576366,871.99,870.12,0.73548572]
[1757242360657,2.576366,871.99,870.13,0.73548572]
[1757242360856,2.576366,872.05,870.14,0.73548572]
[1757242361057,2.576366,872.05,870.08,0.19957104]
[1757242361255,2.576366,872.05,870.09,0.73545639]
[1757242361459,2.576366,872.05,870.1,0.73545639]
[1757242361657,2.576366,872.05,870.11,0.73545639]
[1757242361856,2.576366,872.05,870.12,0.73545639]
[1757242362059,2.576366,872.05,870.13,0.73545639]
[1757242362259,2.576366,872.06,870.14,0.73545639]
[1757242362458,2.576366,872.06,870.15,0.73545639]
[1757242362656,2.576366,872.06,870.08,0.19957104]
[1757242362860,2.576366,872.06,870.09,0.7353846]
[1757242363155,2.576366,872.06,870.1,0.7353846]
[1757242363355,2.576366,872.06,870.11,0.7353846]
[1757242363556,2.576366,872.06,870.12,0.7353846]
[1757242363856,2.576366,872.06,870.13,0.7353846]
[1757242364060,2.576366,872.06,870.14,0.7353846]
[1757242364260,2.576366,872.06,870.08,0.19957104]
[1757242364458,2.576366,871.73,870.09,0.73531036]
[1757242364756,2.576366,871.73,870.1,0.73531036]
[1757242364956,0.19950697,872.17,870.08,0.19957104]
[1757242364957,2.576366,871.64,870.11,0.73531036]
[1757242365161,2.576366,871.64,870.08,0.19957104]
[1757242365456,2.576366,871.64,870.09,0.73530299]
[1757242365660,2.576366,871.64,870.1,0.73530299]
[1757242365860,2.576366,871.64,870.08,0.19957104]
[1757242366060,2.576366,871.63,870.09,0.7352834]
[1757242366257,2.576366,871.63,870.08,0.19957104]
[1757242366457,2.576366,871.63,870.09,0.73481763]
[1757242366756,2.576366,871.63,870.08,0.19957104]
[1757242366961,2.576366,871.62,870.09,0.73481763]
[1757242367162,2.576366,871.62,870.08,0.19957104]
[1757242367358,2.576366,871.62,870.09,0.73481029]
[1757242367564,2.576366,871.63,870.08,0.19957104]
[1757242367962,2.576366,871.65,870.08,0.19957104]
[1757242368563,2.576366,871.57,870.08,0.19957104]
[1757242369060,2.576366,871.59,870.08,0.19957104]
[1757242370666,2.576366,871.42,870.08,0.19957104]
[1757242370962,3.611876,871.98,870.08,0.19957104]
[1757242371369,0.19950697,872.17,870.09,0.76278585]
[1757242371663,0.19950697,872.17,870.1,0.76278585]
[1757242371867,0.19950697,872.17,870.11,0.76278585]
[1757242372069,0.19950697,872.17,870.08,0.19957104]
[1757242377574,3.611876,872.06,870.08,0.19957104]
[1757242378472,3.611876,872.04,870.08,0.19957104]
[1757242379770,2.5732967,871.63,870.08,0.19957104]
[1757242380971,2.5732967,871.62,870.08,0.19957104]
[1757242381575,2.5732967,871.6,870.08,0.19957104]
[1757242382073,2.5732967,871.28,870.08,0.19957104]
[1757242382470,2.5732967,871.24,870.08,0.19957104]
[1757242383076,2.5732967,871.25,870.08,0.19957104]
[1757242384179,2.5732967,871.26,870.08,0.19957104]
[1757242384582,2.5732967,871.28,870.08,0.19957104]
[1757242386681,2.5732967,871.3,870.08,0.19957104]
[1757242387483,2.5732967,871.3,870.09,0.75820825]
[1757242387685,3.611876,871.62,870.1,0.75820825]
[1757242387884,2.5732967,871.89,870.11,0.75820825]
[1757242388187,2.5732967,871.89,870.12,0.75820825]
[1757242388388,2.5732967,871.89,870.13,0.75820825]
[1757242388589,2.5732967,871.89,870.14,0.75820825]
[1757242388787,2.5732967,871.89,870.15,0.75820825]
[1757242388987,2.5732967,871.89,870.16,0.75820825]
[1757242389189,2.5732967,871.89,870.17,0.75820825]
[1757242389389,2.5732967,871.89,870.18,0.75820825]
[1757242389586,2.5732967,871.89,870.19,0.75820825]
[1757242389886,2.5732967,871.95,870.2,0.75820825]
[1757242390085,2.5732967,871.95,870.21,0.75820825]
[1757242390289,2.5732967,871.95,870.22,0.75820825]
[1757242390489,2.5732967,871.95,870.23,0.75820825]
[1757242390691,2.5732967,871.95,870.24,0.75820825]
[1757242390986,2.5732967,871.94,870.25,0.75820825]